[Event "24th European Women Club Cup 2019"]
[Site "Ulcinj"]
[Date "2019.11.15"]
[Round "6.24"]
[White "Lian, Marina"]
[Black "Blagojevic, Tijana"]
[Result "0-1"]
[ECO "B23"]
[WhiteElo "1855"]
[BlackElo "2169"]
[Annotator "NA"]
[PlyCount "106"]
[EventDate "2019.11.10"]
[EventType "team-tourn"]
[EventCountry "MNE"]
[SourceTitle "playchess.com"]
[Source "ChessBase"]
[SourceQuality "1"]
[WhiteTeam "Hertzeliya"]
[BlackTeam "Jelica PEP"]
[TimeControl "40/5400+30:1800+30"]

1. e4 {[%emt 0:00:00]} c5 {[%emt 0:00:00]} 2. Nc3 {[%emt 0:00:00]} d6 {[%emt 0:00:00]} 3. f4 {[%emt 0:00:00]} g6 {[%emt 0:00:00]} 4. Nf3 {[%emt 0:00:00]} Bg7 {[%emt 0:00:00]} 5. Bc4 {[%emt 0:00:00]} Nc6 {[%emt 0:00:29]} 6. O-O {[%emt 0:00:16]} e6 {[%emt 0:00:16]} 7. d3 {[%emt 0:00:23]} Nge7 {[%emt 0:00:08]} 8. Qe1 {[%emt 0:00:30]} O-O {[%emt 0:00:11]} 9. f5 {[%emt 0:00:45]} d5 {[%emt 0:01:41]} 10. Bb3 {[%emt 0:00:12]} gxf5 {[%emt 0:00:30]} 11. exd5 {[%emt 0:05:52]} exd5 {[%emt 0:00:16]} 12. Qh4 {[%emt 0:06:52]} Be6 {[%emt 0:00:36]} 13. Ng5 {[%emt 0:17:12]} h6 {[%emt 0:01:57]} 14. Nxe6 {[%emt 0:00:12]} fxe6 {[%emt 0:00:02]} 15. Bxh6 {[%emt 0:02:51]} Ng6 {[%emt 0:00:06]} 16. Qh5 {[%emt 0:03:39]} Qh4 {[%emt 0:00:05]} 17. Qxh4 {[%emt 0:00:56]} Nxh4 {[%emt 0:00:30]} 18. Bxg7 {[%emt 0:02:20]} Kxg7 {[%emt 0:00:05]} 19. Rae1 {[%emt 0:04:32]} Kf6 {[%emt 0:04:19]} 20. Ne2 {[%emt 0:10:41]} Ng6 {[%emt 0:00:30]} 21. g4 {[%emt 0:06:22]} Kg5 {[%emt 0:21:08]} 22. gxf5 {[%emt 0:09:42]} Rxf5 {[%emt 0:01:21]} 23. Rxf5+ {[%emt 0:00:07]} Kxf5 {[%emt 0:00:34]} 24. Rf1+ {[%emt 0:01:51]} Kg5 {[%emt 0:08:49]} 25. Rf7 {[%emt 0:00:06]} b5 {[%emt 0:02:34]} 26. a4 {[%emt 0:08:06]} c4 {[%emt 0:02:27]} 27. Ba2 {[%emt 0:10:31]} bxa4 {[%emt 0:20:30]} 28. Rc7 {[%emt 0:00:50]} cxd3 {[%emt 0:00:30]} 29. cxd3 {[%emt 0:00:30]} Nce5 {[%emt 0:05:46]} 30. d4 Nf3+ {[%emt 0:02:35]} 31. Kg2 {[%emt 0:01:51]} Nfh4+ {[%emt 0:00:30]} 32. Kg1 {[%emt 0:00:21]} Rb8 {[%emt 0:01:49]} 33. Rc2 {[%emt 0:04:08]} Nf3+ {[%emt 0:00:30]} 34. Kf2 {[%emt 0:00:07]} Nxh2 {[%emt 0:05:01]} 35. Nc3 {[%emt 0:00:30]} Ng4+ {[%emt 0:00:30]} 36. Ke1 {[%emt 0:00:30]} Rh8 {[%emt 0:00:30]} 37. Nxa4 {[%emt 0:00:30]} Rh1+ {[%emt 0:00:30]} 38. Kd2 {[%emt 0:00:30]} Nf4 {[%emt 0:00:30]} 39. Kc3 {[%emt 0:00:30]} a5 {[%emt 0:00:00]} 40. Rd2 {[%emt 0:00:00]} Ne3 {[%emt 0:00:00]} 41. b3 {[%emt 0:12:13]} Nf5 {[%emt 0:28:06]} 42. Nc5 {[%emt 0:00:30]} Nd6 {[%emt 0:00:30]} 43. b4 {[%emt 0:00:30]} Rh3+ {[%emt 0:00:30]} 44. Kc2 {[%emt 0:00:30]} axb4 {[%emt 0:00:11]} 45. Nxe6+ {[%emt 0:13:28]} Nxe6 {[%emt 0:00:30]} 46. Bxd5 {[%emt 0:00:20]} Nf4 {[%emt 0:07:20]} 47. Bg8 {[%emt 0:00:02]} Ne4 {[%emt 0:00:30]} 48. Rd1 Rc3+ {[%emt 0:00:15]} 49. Kb2 {[%emt 0:00:59]} Nd3+ {[%emt 0:00:30]} 50. Kb1 {[%emt 0:01:54]} b3 {[%emt 0:06:20]} 51. d5 {[%emt 0:00:30]} Rc1+ {[%emt 0:00:30]} 52. Rxc1 {[%emt 0:00:30]} Nd2+ {[%emt 0:00:30]} 53. Ka1 {[%emt 0:00:30]} b2+ {[%emt 0:00:30]} 0-1

[Event "24th European Women Club Cup 2019"]
[Site "Ulcinj"]
[Date "2019.11.15"]
[Round "6.25"]
[White "Salimova, Nurgyul"]
[Black "Rapport, Jovana"]
[Result "1/2-1/2"]
[ECO "C10"]
[WhiteElo "2370"]
[BlackElo "2379"]
[Annotator "NA"]
[PlyCount "124"]
[EventDate "2019.11.10"]
[EventType "team-tourn"]
[EventCountry "MNE"]
[SourceTitle "playchess.com"]
[Source "ChessBase"]
[SourceQuality "1"]
[WhiteTeam "Asseco SEE"]
[BlackTeam "MNE Woman Chess"]
[TimeControl "40/5400+30:1800+30"]

1. e4 {[%emt 0:00:00]} e6 {[%emt 0:00:00]} 2. d4 {[%emt 0:00:00]} d5 {[%emt 0:00:00]} 3. Nc3 {[%emt 0:00:01]} dxe4 {[%emt 0:00:00]} 4. Nxe4 {[%emt 0:00:06]} Bd7 {[%emt 0:00:00]} 5. Nf3 {[%emt 0:00:33]} Bc6 {[%emt 0:00:00]} 6. Bd3 {[%emt 0:00:33]} Nd7 {[%emt 0:00:00]} 7. O-O {[%emt 0:02:36]} Ngf6 {[%emt 0:00:19]} 8. Ng3 {[%emt 0:01:30]} g6 {[%emt 0:00:11]} 9. b3 {[%emt 0:01:21]} Bg7 {[%emt 0:00:05]} 10. Ba3 {[%emt 0:01:03]} Bf8 {[%emt 0:00:14]} 11. Bb2 {[%emt 0:00:08]} Bg7 {[%emt 0:00:03]} 12. c4 {[%emt 0:01:52]} O-O {[%emt 0:00:15]} 13. Re1 {[%emt 0:03:33]} Bxf3 {[%emt 0:01:07]} 14. Qxf3 {[%emt 0:00:09]} c6 {[%emt 0:00:03]} 15. Rad1 {[%emt 0:07:03]} Qa5 {[%emt 0:06:19]} 16. Bb1 {[%emt 0:07:45]} Rfe8 {[%emt 0:01:37]} 17. Bc3 {[%emt 0:01:49]} Qg5 {[%emt 0:11:32]} 18. h3 {[%emt 0:06:18]} a5 {[%emt 0:06:02]} 19. a4 {[%emt 0:04:44]} Bh6 {[%emt 0:04:45]} 20. Re5 {[%emt 0:10:11]} Qf4 {[%emt 0:24:14]} 21. Rxa5 {[%emt 0:08:35]} Rad8 {[%emt 0:01:39]} 22. Qxf4 {[%emt 0:08:10]} Bxf4 {[%emt 0:00:29]} 23. Ra7 {[%emt 0:00:07]} Nc5 {[%emt 0:07:03]} 24. Bc2 {[%emt 0:03:18]} Bb8 {[%emt 0:00:17]} 25. dxc5 {[%emt 0:02:57]} Rxd1+ {[%emt 0:00:08]} 26. Bxd1 {[%emt 0:00:05]} Bxa7 {[%emt 0:00:04]} 27. Bxf6 {[%emt 0:00:06]} Bxc5 {[%emt 0:00:04]} 28. Kf1 {[%emt 0:02:54]} Be7 {[%emt 0:01:00]} 29. Bxe7 {[%emt 0:01:14]} Rxe7 {[%emt 0:00:01]} 30. Ne4 {[%emt 0:00:56]} f5 {[%emt 0:00:35]} 31. Nc5 {[%emt 0:00:56]} b6 {[%emt 0:11:30]} 32. Nd3 {[%emt 0:00:09]} e5 {[%emt 0:00:04]} 33. c5 {[%emt 0:04:08]} e4 {[%emt 0:08:52]} 34. Nb4 {[%emt 0:01:23]} bxc5 {[%emt 0:00:05]} 35. Nxc6 {[%emt 0:00:10]} Rc7 {[%emt 0:00:31]} 36. Ne5 {[%emt 0:00:34]} Kg7 {[%emt 0:00:20]} 37. Nc4 {[%emt 0:02:29]} Kf6 {[%emt 0:01:47]} 38. Ke2 {[%emt 0:00:48]} Rd7 {[%emt 0:02:02]} 39. Bc2 {[%emt 0:00:19]} h5 {[%emt 0:01:06]} 40. Na3 {[%emt 0:00:00]} Ke5 {[%emt 0:00:00]} 41. Nb5 {[%emt 0:04:08]} h4 {[%emt 0:10:58]} 42. a5 {[%emt 0:04:36]} Rb7 {[%emt 0:06:41]} 43. Na3 {[%emt 0:00:06]} Kf4 {[%emt 0:04:16]} 44. Nc4 {[%emt 0:00:32]} Ra7 {[%emt 0:00:22]} 45. Kd2 {[%emt 0:03:23]} g5 {[%emt 0:00:46]} 46. Kc3 {[%emt 0:01:03]} g4 {[%emt 0:00:27]} 47. Bd1 {[%emt 0:00:46]} Rd7 {[%emt 0:08:51]} 48. Be2 {[%emt 0:00:42]} Rb7 {[%emt 0:00:02]} 49. Kb2 {[%emt 0:11:27]} Ra7 {[%emt 0:02:29]} 50. Ka3 {[%emt 0:02:38]} e3 {[%emt 0:00:04]} 51. Nxe3 {[%emt 0:12:49]} Rxa5+ {[%emt 0:01:25]} 52. Kb2 {[%emt 0:00:04]} g3 {[%emt 0:01:59]} 53. Nd5+ {[%emt 0:02:07]} Ke5 {[%emt 0:01:23]} 54. Nb6 {[%emt 0:01:49]} Kd4 {[%emt 0:00:59]} 55. fxg3 {[%emt 0:00:58]} hxg3 {[%emt 0:00:05]} 56. h4 {[%emt 0:02:57]} Ra7 {[%emt 0:00:12]} 57. Nc4 {[%emt 0:00:25]} Re7 {[%emt 0:00:38]} 58. Bf3 {[%emt 0:00:22]} Re1 {[%emt 0:00:39]} 59. h5 {[%emt 0:02:50]} Rf1 {[%emt 0:00:02]} 60. Bc6 {[%emt 0:00:23]} Rh1 {[%emt 0:00:03]} 61. Bf3 {[%emt 0:00:06]} Rf1 {[%emt 0:00:02]} 62. Bc6 {[%emt 0:00:15]} Rh1 {[%emt 0:00:01]} 1/2-1/2

[Event "24th European Women Club Cup 2019"]
[Site "Ulcinj"]
[Date "2019.11.15"]
[Round "6.26"]
[White "Koljevic, Nikolina"]
[Black "Krasteva, Beloslava"]
[Result "0-1"]
[ECO "B91"]
[WhiteElo "1902"]
[BlackElo "2261"]
[Annotator "NA"]
[PlyCount "164"]
[EventDate "2019.11.10"]
[EventType "team-tourn"]
[EventCountry "MNE"]
[SourceTitle "playchess.com"]
[Source "ChessBase"]
[SourceQuality "1"]
[WhiteTeam "MNE Woman Chess"]
[BlackTeam "Asseco SEE"]
[TimeControl "40/5400+30:1800+30"]

1. e4 {[%emt 0:00:00]} c5 {[%emt 0:00:00]} 2. Nf3 {[%emt 0:00:00]} d6 {[%emt 0:00:03]} 3. d4 {[%emt 0:00:08]} cxd4 {[%emt 0:00:18]} 4. Nxd4 {[%emt 0:00:15]} Nf6 {[%emt 0:00:18]} 5. Nc3 {[%emt 0:00:21]} a6 {[%emt 0:00:16]} 6. g3 {[%emt 0:00:40]} e6 {[%emt 0:00:50]} 7. Bg2 {[%emt 0:00:26]} Qc7 {[%emt 0:00:46]} 8. O-O {[%emt 0:00:50]} Nc6 {[%emt 0:00:57]} 9. a4 {[%emt 0:01:25]} Be7 {[%emt 0:00:54]} 10. h3 {[%emt 0:01:56]} O-O {[%emt 0:00:49]} 11. Nde2 {[%emt 0:02:38]} b6 {[%emt 0:01:20]} 12. Be3 {[%emt 0:01:41]} Bb7 {[%emt 0:02:12]} 13. f4 {[%emt 0:01:21]} Nd7 {[%emt 0:02:08]} 14. g4 {[%emt 0:03:39]} Rfe8 {[%emt 0:01:58]} 15. g5 {[%emt 0:02:56]} Bf8 {[%emt 0:01:26]} 16. f5 {[%emt 0:10:57]} Nde5 {[%emt 0:02:34]} 17. b3 {[%emt 0:07:05]} Nb4 {[%emt 0:09:14]} 18. Rc1 {[%emt 0:04:00]} d5 {[%emt 0:08:33]} 19. exd5 {[%emt 0:04:59]} exd5 {[%emt 0:01:39]} 20. Qd2 {[%emt 0:10:11]} d4 {[%emt 0:17:14]} 21. Nxd4 {[%emt 0:01:19]} Bxg2 {[%emt 0:01:06]} 22. Kxg2 {[%emt 0:00:59]} Rad8 {[%emt 0:01:13]} 23. Nce2 {[%emt 0:03:08]} Qb7+ {[%emt 0:01:35]} 24. Kg1 {[%emt 0:01:57]} Nd5 {[%emt 0:05:33]} 25. Bf2 {[%emt 0:01:47]} Nf6 {[%emt 0:06:59]} 26. Qf4 {[%emt 0:03:47]} Ne4 {[%emt 0:05:36]} 27. Rcd1 {[%emt 0:06:02]} Bc5 {[%emt 0:04:47]} 28. c3 {[%emt 0:01:48]} Nxf2 {[%emt 0:06:11]} 29. Qxf2 {[%emt 0:01:35]} a5 {[%emt 0:01:56]} 30. Qg2 {[%emt 0:01:55]} Qc8 {[%emt 0:04:32]} 31. Kh1 {[%emt 0:06:06]} Rd7 {[%emt 0:01:47]} 32. Nf3 {[%emt 0:03:11]} Rxd1 {[%emt 0:02:25]} 33. Rxd1 {[%emt 0:00:04]} Qxf5 {[%emt 0:00:06]} 34. Ned4 {[%emt 0:02:28]} Bxd4 {[%emt 0:03:00]} 35. Nxd4 {[%emt 0:00:08]} Qc8 {[%emt 0:00:35]} 36. Re1 {[%emt 0:04:27]} Nd3 {[%emt 0:05:31]} 37. Rxe8+ {[%emt 0:02:43]} Qxe8 {[%emt 0:00:02]} 38. Qe2 {[%emt 0:01:16]} Qxe2 {[%emt 0:00:50]} 39. Nxe2 {[%emt 0:00:02]} Nc5 {[%emt 0:00:08]} 40. Nf4 {[%emt 0:00:00]} Nxb3 {[%emt 0:00:00]} 41. Nd5 {[%emt 0:05:07]} Nc5 {[%emt 0:11:19]} 42. Nxb6 {[%emt 0:00:08]} Ne4 {[%emt 0:00:25]} 43. h4 {[%emt 0:02:48]} Nxc3 {[%emt 0:00:45]} 44. Nc4 {[%emt 0:00:21]} Nxa4 {[%emt 0:00:29]} 45. Nxa5 {[%emt 0:00:11]} Kf8 {[%emt 0:02:31]} 46. Nc6 {[%emt 0:02:21]} Ke8 {[%emt 0:01:43]} 47. Kg2 {[%emt 0:00:50]} Kd7 {[%emt 0:00:23]} 48. Nd4 {[%emt 0:00:27]} Nc5 {[%emt 0:00:28]} 49. Kf3 {[%emt 0:02:51]} Ne6 {[%emt 0:03:22]} 50. Nf5 {[%emt 0:01:31]} g6 {[%emt 0:03:14]} 51. Nh6 {[%emt 0:01:53]} Nd8 {[%emt 0:01:45]} 52. Ke4 {[%emt 0:03:16]} Ke6 {[%emt 0:00:28]} 53. Ng4 {[%emt 0:02:38]} Nb7 {[%emt 0:00:51]} 54. Kf4 {[%emt 0:03:08]} Nd6 {[%emt 0:00:24]} 55. Nh6 {[%emt 0:01:07]} Nc4 {[%emt 0:03:34]} 56. Ng4 {[%emt 0:02:15]} Nb6 {[%emt 0:00:15]} 57. Ke4 {[%emt 0:01:32]} Nd5 {[%emt 0:00:20]} 58. Nh2 {[%emt 0:02:07]} Ne7 {[%emt 0:01:11]} 59. Nf3 {[%emt 0:00:55]} Nf5 {[%emt 0:01:09]} 60. Kf4 {[%emt 0:01:14]} Kd5 {[%emt 0:00:28]} 61. Ne5 {[%emt 0:01:01]} Ke6 {[%emt 0:02:35]} 62. Nf3 {[%emt 0:00:22]} Kd5 {[%emt 0:01:17]} 63. Ne5 {[%emt 0:00:12]} Nxh4 {[%emt 0:00:16]} 64. Nxf7 {[%emt 0:00:13]} Nf5 {[%emt 0:00:59]} 65. Ne5 {[%emt 0:00:42]} Nd4 {[%emt 0:00:22]} 66. Nd3 {[%emt 0:03:13]} Ne6+ {[%emt 0:00:13]} 67. Kg4 {[%emt 0:00:28]} Kd4 {[%emt 0:00:47]} 68. Ne1 {[%emt 0:01:43]} Ke4 {[%emt 0:01:04]} 69. Nf3 {[%emt 0:00:53]} Nd4 {[%emt 0:00:29]} 70. Nh4 {[%emt 0:01:51]} Nc2 {[%emt 0:01:24]} 71. Nf3 {[%emt 0:00:51]} Ne3+ {[%emt 0:00:16]} 72. Kg3 {[%emt 0:00:38]} Kf5 {[%emt 0:00:12]} 73. Kf2 {[%emt 0:00:59]} Kf4 {[%emt 0:00:26]} 74. Ke2 {[%emt 0:01:26]} Ng4 {[%emt 0:00:22]} 75. Nd4 {[%emt 0:00:18]} Kxg5 {[%emt 0:00:13]} 76. Kf3 {[%emt 0:00:06]} Nf6 {[%emt 0:00:24]} 77. Ne6+ {[%emt 0:00:12]} Kf5 {[%emt 0:00:17]} 78. Nd4+ {[%emt 0:00:16]} Ke5 {[%emt 0:00:23]} 79. Nc6+ {[%emt 0:00:08]} Kd6 {[%emt 0:00:11]} 80. Nd8 {[%emt 0:00:40]} Kd7 {[%emt 0:00:36]} 81. Nf7 {[%emt 0:00:20]} Ke7 {[%emt 0:00:17]} 82. Nh6 {[%emt 0:00:21]} Kf8 {[%emt 0:00:55]} 0-1

[Event "24th European Women Club Cup 2019"]
[Site "Ulcinj"]
[Date "2019.11.15"]
[Round "6.27"]
[White "Djukic, Sandra"]
[Black "Rakic, Tijana"]
[Result "1/2-1/2"]
[ECO "A81"]
[WhiteElo "2148"]
[BlackElo "1680"]
[Annotator "NA"]
[PlyCount "133"]
[EventDate "2019.11.10"]
[EventType "team-tourn"]
[EventCountry "MNE"]
[SourceTitle "playchess.com"]
[Source "ChessBase"]
[SourceQuality "1"]
[WhiteTeam "Asseco SEE"]
[BlackTeam "MNE Woman Chess"]
[TimeControl "40/5400+30:1800+30"]

1. d4 {[%emt 0:00:00]} f5 {[%emt 0:00:00]} 2. g3 {[%emt 0:00:00]} e6 {[%emt 0:00:00]} 3. Bg2 {[%emt 0:00:00]} Nf6 {[%emt 0:00:00]} 4. Nf3 {[%emt 0:00:35]} d5 {[%emt 0:00:27]} 5. O-O {[%emt 0:02:39]} Bd6 {[%emt 0:00:19]} 6. c4 {[%emt 0:00:23]} O-O {[%emt 0:00:20]} 7. b3 {[%emt 0:03:21]} Ne4 {[%emt 0:01:10]} 8. Qc2 {[%emt 0:06:12]} Nd7 {[%emt 0:01:50]} 9. Bb2 {[%emt 0:05:24]} c5 {[%emt 0:04:34]} 10. dxc5 {[%emt 0:13:18]} Bxc5 {[%emt 0:04:28]} 11. e3 {[%emt 0:22:38]} Ndf6 {[%emt 0:07:05]} 12. cxd5 {[%emt 0:03:47]} Nxd5 {[%emt 0:10:00]} 13. Bd4 {[%emt 0:16:36]} b6 {[%emt 0:15:28]} 14. Rd1 {[%emt 0:03:38]} Ba6 {[%emt 0:06:11]} 15. Qb2 {[%emt 0:06:58]} Rc8 {[%emt 0:11:12]} 16. Na3 {[%emt 0:05:19]} Qe7 {[%emt 0:08:24]} 17. Nc2 {[%emt 0:05:01]} Bb4 {[%emt 0:02:59]} 18. Nxb4 {[%emt 0:01:21]} Nxb4 {[%emt 0:00:57]} 19. Ne1 {[%emt 0:00:01]} Nf6 {[%emt 0:08:48]} 20. Rac1 {[%emt 0:02:05]} Nbd5 {[%emt 0:02:01]} 21. Nd3 {[%emt 0:00:37]} Rxc1 {[%emt 0:01:13]} 22. Qxc1 {[%emt 0:00:26]} Rc8 {[%emt 0:00:30]} 23. Qb2 {[%emt 0:00:14]} Bxd3 {[%emt 0:08:06]} 24. Rxd3 {[%emt 0:00:02]} Qc7 {[%emt 0:00:13]} 25. Bf3 {[%emt 0:01:18]} Qc1+ {[%emt 0:01:42]} 26. Qxc1 {[%emt 0:00:29]} Rxc1+ {[%emt 0:00:03]} 27. Rd1 {[%emt 0:00:20]} Rc2 {[%emt 0:00:10]} 28. Bxf6 {[%emt 0:00:38]} Nxf6 {[%emt 0:00:48]} 29. a4 {[%emt 0:00:30]} Rb2 {[%emt 0:01:59]} 30. Rd3 {[%emt 0:00:32]} Ng4 {[%emt 0:01:15]} 31. Bxg4 {[%emt 0:00:03]} fxg4 {[%emt 0:00:04]} 32. Rd8+ {[%emt 0:00:58]} Kf7 {[%emt 0:00:06]} 33. Rd7+ {[%emt 0:00:01]} Kf6 {[%emt 0:00:06]} 34. Rxa7 {[%emt 0:00:05]} Rxb3 {[%emt 0:00:10]} 35. Ra8 {[%emt 0:00:51]} h5 {[%emt 0:02:23]} 36. Rf8+ {[%emt 0:01:02]} Ke7 {[%emt 0:00:49]} 37. Rf4 {[%emt 0:00:29]} b5 {[%emt 0:00:59]} 38. axb5 {[%emt 0:00:32]} Rxb5 {[%emt 0:00:06]} 39. Ra4 {[%emt 0:00:32]} Rb2 {[%emt 0:00:39]} 40. Kg2 {[%emt 0:00:00]} Kf6 {[%emt 0:00:00]} 41. Rf4+ {[%emt 0:03:47]} Ke7 {[%emt 0:01:24]} 42. Rc4 {[%emt 0:03:17]} Kf6 {[%emt 0:00:33]} 43. Rc1 {[%emt 0:01:08]} Ra2 {[%emt 0:02:57]} 44. Rh1 {[%emt 0:01:27]} Rb2 {[%emt 0:03:54]} 45. h3 {[%emt 0:00:15]} Ra2 {[%emt 0:00:11]} 46. hxg4 {[%emt 0:00:35]} hxg4 {[%emt 0:00:34]} 47. Rh4 {[%emt 0:00:33]} Kg5 {[%emt 0:00:29]} 48. Rh8 Kf6 {[%emt 0:00:57]} 49. Rf8+ {[%emt 0:00:08]} Kg5 {[%emt 0:00:25]} 50. Kf1 {[%emt 0:00:40]} Rb2 {[%emt 0:00:34]} 51. Ke1 {[%emt 0:00:03]} Ra2 {[%emt 0:01:24]} 52. Rd8 {[%emt 0:01:11]} Kf5 {[%emt 0:03:25]} 53. Rd7 {[%emt 0:00:40]} g6 {[%emt 0:00:43]} 54. Rd4 {[%emt 0:02:55]} Rb2 {[%emt 0:03:18]} 55. Ra4 {[%emt 0:09:03]} Rc2 {[%emt 0:01:01]} 56. Kf1 {[%emt 0:00:14]} Rb2 {[%emt 0:00:43]} 57. Kg2 {[%emt 0:00:28]} Re2 {[%emt 0:03:04]} 58. Kf1 {[%emt 0:03:35]} Rb2 {[%emt 0:00:08]} 59. Ra8 {[%emt 0:06:51]} Rc2 {[%emt 0:01:12]} 60. Rg8 {[%emt 0:00:39]} Ra2 {[%emt 0:01:34]} 61. Re8 {[%emt 0:02:41]} Rb2 {[%emt 0:01:30]} 62. Rf8+ {[%emt 0:00:57]} Kg5 {[%emt 0:00:59]} 63. Ke1 {[%emt 0:00:39]} Ra2 {[%emt 0:00:19]} 64. Rd8 {[%emt 0:00:36]} Kf5 {[%emt 0:00:18]} 65. Rd4 {[%emt 0:00:14]} Rb2 {[%emt 0:00:33]} 66. Ra4 {[%emt 0:00:31]} Rc2 {[%emt 0:01:01]} 67. Rb4 {[%emt 0:00:38]} 1/2-1/2

[Event "24th European Women Club Cup 2019"]
[Site "Ulcinj"]
[Date "2019.11.15"]
[Round "6.28"]
[White "Radosevic, Nevena"]
[Black "Manova, Ivana"]
[Result "0-1"]
[ECO "E13"]
[WhiteElo "1706"]
[BlackElo "1795"]
[Annotator "NA"]
[PlyCount "56"]
[EventDate "2019.11.10"]
[EventType "team-tourn"]
[EventCountry "MNE"]
[SourceTitle "playchess.com"]
[Source "ChessBase"]
[SourceQuality "1"]
[WhiteTeam "MNE Woman Chess"]
[BlackTeam "Asseco SEE"]
[TimeControl "40/5400+30:1800+30"]

1. d4 {[%emt 0:00:00]} Nf6 {[%emt 0:00:00]} 2. c4 {[%emt 0:00:00]} e6 {[%emt 0:00:12]} 3. Nc3 {[%emt 0:00:11]} Bb4 {[%emt 0:00:29]} 4. Qc2 {[%emt 0:00:29]} b6 {[%emt 0:00:27]} 5. Bg5 {[%emt 0:16:17]} Bb7 {[%emt 0:00:33]} 6. e3 {[%emt 0:09:02]} h6 {[%emt 0:04:15]} 7. Bh4 {[%emt 0:00:59]} O-O {[%emt 0:01:58]} 8. Nf3 {[%emt 0:02:45]} d6 {[%emt 0:15:01]} 9. h3 {[%emt 0:06:56]} g5 {[%emt 0:08:54]} 10. Bg3 {[%emt 0:00:32]} Ne4 {[%emt 0:00:29]} 11. Bd3 {[%emt 0:08:36]} f5 {[%emt 0:01:51]} 12. a3 {[%emt 0:09:21]} Bxc3+ {[%emt 0:00:41]} 13. bxc3 {[%emt 0:00:07]} Nd7 {[%emt 0:02:40]} 14. Bh2 {[%emt 0:10:39]} Qe8 {[%emt 0:10:13]} 15. O-O {[%emt 0:05:30]} Ndf6 {[%emt 0:19:15]} 16. Nd2 {[%emt 0:04:08]} Nxd2 {[%emt 0:02:35]} 17. Qxd2 {[%emt 0:00:13]} Kh8 {[%emt 0:04:58]} 18. Qe2 {[%emt 0:04:01]} g4 {[%emt 0:05:57]} 19. hxg4 {[%emt 0:13:47]} Nxg4 {[%emt 0:00:30]} 20. f3 {[%emt 0:00:44]} Nxh2 {[%emt 0:00:49]} 21. Kxh2 {[%emt 0:00:05]} Qh5+ {[%emt 0:00:54]} 22. Kg1 {[%emt 0:00:11]} Rg8 {[%emt 0:01:16]} 23. e4 {[%emt 0:00:35]} Rg3 {[%emt 0:07:37]} 24. Kf2 {[%emt 0:03:53]} Rag8 {[%emt 0:04:55]} 25. Rg1 {[%emt 0:00:15]} Qh4 {[%emt 0:00:49]} 26. Kf1 {[%emt 0:00:19]} fxe4 {[%emt 0:00:47]} 27. fxe4 {[%emt 0:00:35]} Rf8+ {[%emt 0:00:14]} 28. Ke1 {[%emt 0:00:19]} Rxg2+ {[%emt 0:01:11]} 0-1

[Event "24th European Women Club Cup 2019"]
[Site "Ulcinj"]
[Date "2019.11.16"]
[Round "7.1"]
[White "Bodnaruk, Anastasia"]
[Black "Javakhishvili, Lela"]
[Result "1/2-1/2"]
[ECO "B09"]
[WhiteElo "2412"]
[BlackElo "2457"]
[Annotator "ChessBase"]
[PlyCount "33"]
[EventDate "2019.11.10"]
[EventType "team-tourn"]
[EventCountry "MNE"]
[SourceTitle "playchess.com"]
[Source "ChessBase"]
[SourceQuality "1"]
[WhiteTeam "SPB"]
[BlackTeam "Nona"]
[TimeControl "40/5400+30:1800+30"]

1. e4 {[%emt 0:00:00]} d6 {[%emt 0:00:00]} 2. d4 {[%emt 0:00:00]} Nf6 {[%emt 0:00:00]} 3. Nc3 {[%emt 0:00:00]} g6 {[%emt 0:00:16]} 4. f4 {[%emt 0:00:47]} Bg7 {[%emt 0:00:31]} 5. Nf3 {[%emt 0:00:37]} c5 {[%emt 0:00:36]} 6. Bb5+ {[%emt 0:02:06]} Bd7 {[%emt 0:00:40]} 7. e5 {[%emt 0:01:54]} Ng4 {[%emt 0:02:10]} 8. e6 {[%emt 0:02:24]} fxe6 {[%emt 0:00:41]} 9. Ng5 {[%emt 0:00:49]} Bxb5 {[%emt 0:01:44]} 10. Nxe6 {[%emt 0:02:29]} Bxd4 {[%emt 0:01:23]} 11. Nxb5 {[%emt 0:01:37]} Qa5+ {[%emt 0:04:13]} 12. c3 {[%emt 0:01:31]} Bf2+ {[%emt 0:00:58]} 13. Kd2 {[%emt 0:00:22]} Be3+ {[%emt 0:00:34]} 14. Ke1 {[%emt 0:00:27]} Bf2+ {[%emt 0:00:27]} 15. Kd2 {[%emt 0:00:13]} Be3+ {[%emt 0:00:25]} 16. Ke1 {[%emt 0:00:33]} Bf2+ {[%emt 0:00:12]} 17. Kd2 {[%emt 0:00:08]} 1/2-1/2

[Event "24th European Women Club Cup 2019"]
[Site "Ulcinj"]
[Date "2019.11.16"]
[Round "7.2"]
[White "Batsiashvili, Nino"]
[Black "Ovod, Evgenija"]
[Result "1/2-1/2"]
[ECO "D14"]
[WhiteElo "2422"]
[BlackElo "2347"]
[Annotator "NA"]
[PlyCount "61"]
[EventDate "2019.11.10"]
[EventType "team-tourn"]
[EventCountry "MNE"]
[SourceTitle "playchess.com"]
[Source "ChessBase"]
[SourceQuality "1"]
[WhiteTeam "Nona"]
[BlackTeam "SPB"]
[TimeControl "40/5400+30:1800+30"]

1. d4 {[%emt 0:00:00]} d5 {[%emt 0:00:00]} 2. c4 {[%emt 0:00:00]} c6 {[%emt 0:00:00]} 3. cxd5 {[%emt 0:00:00]} cxd5 {[%emt 0:00:00]} 4. Nf3 {[%emt 0:00:17]} Nf6 {[%emt 0:00:12]} 5. Nc3 {[%emt 0:00:16]} Nc6 {[%emt 0:00:18]} 6. Bf4 {[%emt 0:00:18]} Bf5 {[%emt 0:00:17]} 7. e3 {[%emt 0:00:35]} e6 {[%emt 0:00:46]} 8. Qb3 {[%emt 0:01:08]} Bb4 {[%emt 0:02:26]} 9. Ne5 {[%emt 0:01:34]} Bxc3+ {[%emt 0:00:43]} 10. bxc3 {[%emt 0:00:06]} Nxe5 {[%emt 0:00:24]} 11. Bxe5 {[%emt 0:00:07]} O-O {[%emt 0:00:06]} 12. Be2 {[%emt 0:00:55]} Rc8 $11 {[%emt 0:00:29]} 13. O-O {[%emt 0:00:58]} Ne4 14. Qxb7 {[%emt 0:00:43]} f6 {[%emt 0:01:06]} 15. Bg3 {[%emt 0:00:31]} Rf7 {[%emt 0:00:41]} 16. Qa6 {[%emt 0:00:28]} Nxc3 17. Rfc1 {[%emt 0:01:02]} Nxe2+ {[%emt 0:02:02]} 18. Qxe2 {[%emt 0:00:08]} Rb7 {[%emt 0:00:16]} 19. Qa6 {[%emt 0:00:36]} Rxc1+ {[%emt 0:01:17]} 20. Rxc1 {[%emt 0:00:09]} Qb6 {[%emt 0:00:08]} 21. Rc8+ {[%emt 0:01:36]} Kf7 {[%emt 0:02:24]} 22. Qxb7+ {[%emt 0:00:07]} Qxb7 {[%emt 0:00:04]} 23. Rc7+ {[%emt 0:00:05]} Qxc7 {[%emt 0:00:11]} 24. Bxc7 {[%emt 0:00:06]} Bd3 {[%emt 0:01:01]} 25. f3 {[%emt 0:00:20]} h5 {[%emt 0:01:07]} 26. h4 {[%emt 0:00:06]} g5 {[%emt 0:00:30]} 27. Kf2 {[%emt 0:00:00]} Kg6 {[%emt 0:01:32]} 28. Bb8 {[%emt 0:00:01]} a6 {[%emt 0:00:09]} 29. Be5 {[%emt 0:00:15]} g4 {[%emt 0:00:16]} 30. fxg4 {[%emt 0:00:12]} hxg4 {[%emt 0:00:07]} 31. Kg3 {[%emt 0:00:17]} 1/2-1/2